bitfinex/quotes_SOLUSD_20241215
["timestamp","ask_amount","ask_price","bid_price","bid_amount"]
[1734299053519,23.776884,217.94,217.9,6.4654]
[1734299053724,20.0,217.95,217.89,1.5365]
[1734299053940,20.0,217.95,217.85,6.4654]
[1734299053941,20.0,217.91,217.85,6.4654]
[1734299054155,23.776884,217.9,217.85,6.4654]
[1734299054462,23.776884,217.9,217.84,1.5365]
[1734299055036,10.3263,217.89,217.84,1.5365]
[1734299055673,20.0,217.95,217.84,1.5365]
[1734299055829,3.7035644,217.96,217.86,12.38748053]
[1734299056031,0.12549,217.98,217.86,12.38748053]
[1734299056868,41.2862,217.99,217.86,12.38748053]
[1734299057084,20.0,217.96,217.85,12.38748053]
[1734299057382,20.0,217.96,217.84,1.5365]
[1734299058053,23.776884,217.95,217.84,1.5365]
[1734299058356,10.3239,217.94,217.84,1.5365]
[1734299058877,10.3239,217.94,217.84,13.92398053]
[1734299059659,10.3239,217.94,217.84,1.5365]
[1734299060849,10.3239,217.94,217.84,13.92398053]
[1734299061468,10.3239,217.94,217.84,1.5365]
[1734299063880,20.0,217.9,217.84,1.5365]
[1734299064080,23.776884,217.89,217.84,1.5365]
[1734299064386,23.776884,217.89,217.8,6.4654]
[1734299064578,20.0,217.86,217.8,6.4654]
[1734299066188,10.3272,217.87,217.8,6.4654]
[1734299068677,10.3257,217.91,217.83,12.38748053]
[1734299068862,10.3238,217.95,217.84,12.38748053]
[1734299070664,23.776884,217.94,217.84,12.38748053]
[1734299071289,23.776884,217.94,217.83,12.38748053]
[1734299071491,23.776884,217.92,217.8,18.85288053]
[1734299071886,23.776884,217.92,217.81,12.38748053]
[1734299072965,23.776884,217.92,217.8,18.85288053]
[1734299072966,10.3253,217.91,217.8,18.85288053]
[1734299073169,10.3253,217.91,217.8,6.4654]
[1734299073473,23.776884,217.9,217.8,6.4654]
[1734299074806,23.776884,217.88,217.8,6.4654]
[1734299075829,23.776884,217.86,217.8,6.4654]
[1734299076682,23.776884,217.86,217.75,6.3284]
[1734299077000,23.776884,217.84,217.75,6.3284]
[1734299079410,23.776884,217.88,217.78,12.38748053]
[1734299080809,23.776884,217.88,217.76,12.38748053]
[1734299081804,23.776884,217.88,217.77,12.38748053]
[1734299082104,23.776884,217.88,217.75,6.3284]
[1734299082307,10.3272,217.87,217.75,6.3284]
[1734299082714,10.3272,217.87,217.75,18.71588053]
[1734299083190,23.776884,217.86,217.75,6.3284]
[1734299083387,10.3282,217.85,217.75,6.3284]
[1734299084491,10.3282,217.85,217.75,18.71588053]
[1734299086806,10.3282,217.85,217.76,12.38748053]
[1734299087206,23.776884,217.88,217.78,12.38748053]
[1734299087594,10.3266,217.89,217.78,12.38748053]
[1734299087797,10.3266,217.89,217.79,12.38748053]
[1734299088024,10.3266,217.89,217.78,12.38748053]
[1734299088213,10.3266,217.89,217.77,12.38748053]
[1734299088795,20.0,217.9,217.77,12.38748053]
[1734299089201,20.0,217.89,217.75,6.3284]
[1734299089422,23.776884,217.88,217.75,6.3284]
[1734299089904,23.776884,217.88,217.75,18.71588053]
[1734299090500,10.3272,217.87,217.75,18.71588053]
[1734299090717,23.776884,217.86,217.75,18.71588053]
[1734299091528,23.776884,217.86,217.75,6.3284]
[1734299092197,23.776884,217.84,217.75,6.3284]
[1734299093022,23.776884,217.84,217.74,15.95807497]
[1734299093710,20.0,217.81,217.74,15.95807497]
[1734299095100,23.776884,217.84,217.74,15.95807497]
[1734299095301,23.776884,217.82,217.74,15.95807497]
[1734299095924,23.776884,217.82,217.74,14.40717497]
[1734299098152,34.230974,217.84,217.7,6.1477]
[1734299098327,23.776884,217.8,217.7,6.1477]
[1734299099322,34.107684,217.8,217.7,6.1477]
[1734299099517,1.5832,217.85,217.72,12.38748053]
[1734299099715,21.5832,217.85,217.73,12.38748053]
[1734299100313,21.5832,217.85,217.71,0.12549]
[1734299100314,10.3291,217.84,217.71,12.38748053]
[1734299100707,10.3291,217.84,217.7,18.53518053]
[1734299101030,23.776884,217.83,217.7,6.1477]
[1734299101242,23.776884,217.83,217.72,12.38748053]
[1734299101418,10.3291,217.84,217.73,12.38748053]
[1734299101739,21.5832,217.85,217.74,12.38748053]
[1734299101945,20.0,217.85,217.75,12.38748053]
[1734299102450,4.4010601,217.91,217.79,12.38748053]
[1734299102651,4.4010601,217.91,217.81,12.38748053]
[1734299102652,1.6474,217.91,217.81,12.38748053]
[1734299102856,10.325,217.92,217.83,12.38748053]
[1734299103215,10.325,217.92,217.81,12.38748053]
[1734299103412,10.325,217.92,217.8,6.1504]
[1734299104123,10.325,217.92,217.81,12.38748053]
[1734299104552,10.325,217.92,217.8,18.53788053]
[1734299105336,23.776884,217.91,217.8,6.1504]
[1734299105542,23.776884,217.91,217.81,12.38748053]
[1734299105749,10.325,217.92,217.81,12.38748053]
[1734299105955,10.325,217.92,217.82,12.38748053]
[1734299106320,11.9706,217.96,217.85,12.38748053]
[1734299106527,11.9706,217.96,217.86,12.38748053]
[1734299107725,4.42105438,217.99,217.88,12.38748053]
[1734299107925,10.3213,218.0,217.89,12.38748053]
[1734299108339,10.3213,218.0,217.88,12.38748053]
[1734299109327,20.0,217.96,217.85,12.38748053]
[1734299110368,23.776884,217.95,217.84,12.38748053]
[1734299110536,23.776884,217.95,217.85,12.38748053]
[1734299112547,23.776884,217.93,217.83,1.5784]
[1734299113438,23.776884,217.93,217.8,18.53788053]
[1734299113665,23.776884,217.91,217.8,6.1504]
[1734299113965,25.424284,217.91,217.8,6.1504]
[1734299116350,10.3258,217.9,217.8,6.1504]
[1734299116664,23.776884,217.89,217.78,1.5784]
[1734299116831,23.776884,217.89,217.78,13.96588053]
[1734299118059,23.776884,217.87,217.76,12.38748053]
[1734299118264,23.776884,217.87,217.75,6.1504]
[1734299118265,23.776884,217.87,217.75,18.53788053]
[1734299118435,23.776884,217.87,217.75,6.1504]
[1734299118637,23.776884,217.83,217.73,1.5784]
[1734299119929,30.329,217.84,217.73,13.96588053]
[1734299120361,1.6474,217.91,217.75,12.38748053]
[1734299120570,10.3271,217.88,217.79,12.38748053]
[1734299121637,10.3271,217.88,217.78,12.38748053]
[1734299122438,1.6474,217.91,217.81,12.38748053]
[1734299123536,23.776884,217.9,217.81,12.38748053]
[1734299124241,23.776884,217.9,217.8,12.38748053]
[1734299124847,10.3263,217.89,217.78,12.38748053]
[1734299125967,10.3263,217.89,217.79,12.38748053]
[1734299126264,1.6474,217.91,217.8,12.38748053]
[1734299126468,20.0,217.9,217.81,12.38748053]
[1734299126774,20.0,217.9,217.82,12.38748053]
[1734299127070,20.0,217.9,217.81,12.38748053]
[1734299127280,1.6474,217.91,217.81,12.38748053]
[1734299127940,1.6474,217.91,217.8,12.38748053]
[1734299128197,34.102684,217.9,217.78,12.38748053]
[1734299129444,10.3258,217.9,217.8,12.38748053]
[1734299129751,23.776884,217.89,217.79,12.38748053]
[1734299129945,23.776884,217.89,217.78,12.38748053]
[1734299130648,10.3258,217.9,217.8,12.38748053]
[1734299132680,10.3258,217.9,217.81,12.38748053]
[1734299133381,1.6474,217.91,217.83,12.38748053]
[1734299134383,10.3243,217.94,217.85,12.38748053]
[1734299134597,1.5145,217.96,217.87,12.38748053]
[1734299134758,1.5145,217.96,217.88,12.38748053]
[1734299135086,10.3224,217.98,217.88,12.38748053]
[1734299136289,10.3224,217.98,217.9,12.38748053]
[1734299136762,10.3224,217.98,217.89,12.38748053]
[1734299136964,10.3224,217.98,217.88,12.38748053]
[1734299137178,10.3224,217.98,217.89,12.38748053]
[1734299138063,10.3224,217.98,217.88,12.38748053]
[1734299138264,23.776884,217.97,217.85,12.38748053]
[1734299138465,0.25098,217.96,217.82,13.97808053]
[1734299138671,0.25098,217.96,217.79,6.4156]
[1734299138672,23.776884,217.92,217.79,18.80308053]
[1734299138873,23.776884,217.92,217.77,12.38748053]
[1734299140061,23.776884,217.9,217.77,12.38748053]
[1734299140462,23.776884,217.9,217.78,12.38748053]
[1734299140867,23.776884,217.9,217.76,12.38748053]
[1734299141868,23.902374,217.92,217.76,12.38748053]
[1734299142074,23.776884,217.88,217.76,12.38748053]
[1734299142249,23.776884,217.88,217.75,12.38748053]
[1734299142453,23.776884,217.88,217.76,12.38748053]
[1734299142994,23.776884,217.88,217.71,2.35165631]
[1734299142995,23.776884,217.84,217.72,12.38748053]
[1734299143485,23.776884,217.84,217.71,1.6631]
[1734299143486,23.776884,217.84,217.73,12.38748053]
[1734299144370,23.776884,217.82,217.71,12.38748053]
[1734299144556,23.776884,217.82,217.7,12.38748053]
[1734299144950,23.776884,217.82,217.71,12.38748053]
[1734299145988,11.9262,217.83,217.73,12.38748053]
[1734299147188,23.776884,217.8,217.69,12.38748053]
[1734299147391,23.776884,217.8,217.68,12.38748053]
[1734299148703,23.776884,217.78,217.67,12.38748053]
[1734299148998,23.776884,217.78,217.68,12.38748053]
[1734299149359,23.776884,217.78,217.66,26.71698075]
[1734299150286,23.776884,217.78,217.66,14.32950022]
[1734299150478,10.3338,217.73,217.61,12.38748053]
[1734299150679,23.776884,217.72,217.59,12.38748053]
[1734299150879,23.776884,217.72,217.58,12.38748053]
[1734299151079,23.776884,217.72,217.53,6.6592]
[1734299151080,23.776884,217.68,217.54,12.38748053]
[1734299151297,20.0,217.65,217.53,19.04668053]
[1734299151486,23.776884,217.64,217.53,12.38748053]
[1734299151801,23.776884,217.62,217.52,14.59350172]
[1734299152501,10.3414,217.57,217.44,12.38748053]
[1734299152801,23.776884,217.56,217.44,12.38748053]
[1734299153009,23.776884,217.56,217.38,3.45725693]
[1734299153171,23.776884,217.56,217.41,12.38748053]
[1734299153370,23.776884,217.56,217.39,12.38748053]
[1734299153371,23.776884,217.52,217.39,12.38748053]
[1734299154118,9.42105438,217.62,217.48,12.38748053]
[1734299154119,2.79800397,217.58,217.48,12.38748053]
[1734299154264,23.776884,217.57,217.45,12.38748053]
[1734299154469,23.776884,217.57,217.44,12.38748053]
[1734299154801,23.776884,217.57,217.42,0.5405967]
[1734299154802,23.776884,217.53,217.42,12.92807723]
[1734299155104,23.776884,217.53,217.42,0.5405967]
[1734299157602,34.120584,217.53,217.42,0.5405967]
[1734299158224,23.776884,217.51,217.42,0.5405967]
[1734299158401,23.776884,217.49,217.42,0.5405967]
[1734299158698,20.0,217.49,217.42,0.5405967]
[1734299160578,20.0,217.45,217.42,0.5405967]
[1734299161004,23.776884,217.44,217.42,0.5405967]
[1734299161506,20.0,217.45,217.42,0.5405967]
[1734299161713,10.3457,217.48,217.42,0.5405967]
[1734299161883,1.5152,217.5,217.42,0.5405967]
[1734299162499,6.5198,217.52,217.42,12.92807723]
[1734299162806,8.20810908,217.54,217.45,12.38748053]
[1734299162993,8.20810908,217.54,217.42,0.5405967]
[1734299163601,10.46889,217.53,217.42,0.5405967]
[1734299164113,23.776884,217.52,217.42,0.5405967]
[1734299164474,10.3434,217.53,217.42,0.5405967]
[1734299164681,8.20810908,217.54,217.44,12.38748053]
[1734299164900,8.20810908,217.54,217.42,0.5405967]
[1734299165977,23.776884,217.53,217.42,12.92807723]
[1734299166191,8.20810908,217.54,217.42,12.92807723]
[1734299166505,18.55120908,217.54,217.42,12.92807723]
[1734299166682,23.776884,217.53,217.42,0.5405967]
[1734299166887,10.3438,217.52,217.42,0.5405967]
[1734299167492,8.20810908,217.54,217.44,12.38748053]
[1734299167732,10.3421,217.56,217.45,12.38748053]
[1734299168985,10.3421,217.56,217.44,12.38748053]
[1734299169830,20.0,217.51,217.42,0.5405967]
[1734299170332,20.0,217.47,217.42,0.5405967]
[1734299170538,25.364584,217.46,217.42,0.5405967]
[1734299171031,0.12549,217.45,217.42,0.5405967]
[1734299171330,6.024,217.44,217.42,0.5405967]
[1734299171696,34.250474,217.43,217.42,0.5405967]
[1734299172400,34.250474,217.43,217.42,9.67e-05]
[1734299172401,34.375964,217.43,217.42,9.67e-05]
[1734299173937,20.0,217.4,217.28,13.8]
[1734299174233,20.0,217.35,217.25,6.2884]
[1734299174403,20.0,217.35,217.23,19.95171991]
[1734299174724,20.0,217.36,217.27,19.95171991]
[1734299175225,20.0,217.36,217.25,19.95171991]
[1734299175422,23.776884,217.35,217.21,1.5219]
[1734299175603,23.776884,217.35,217.2,26.78071661]
[1734299175807,20.0,217.32,217.2,26.78071661]
[1734299176026,20.0,217.32,217.2,6.8289967]
[1734299176231,30.3537,217.32,217.2,6.8289967]
[1734299177032,30.3537,217.32,217.2,0.5405967]
[1734299177403,20.0,217.28,217.2,0.5405967]
[1734299177796,6.2439,217.31,217.21,19.95171991]
[1734299178036,6.2439,217.31,217.22,19.95171991]
[1734299178204,23.776884,217.3,217.2,0.5405967]
[1734299178405,20.0,217.27,217.2,0.5405967]
[1734299178902,23.776884,217.26,217.2,0.5405967]
[1734299179420,20.0,217.23,217.2,0.5405967]
[1734299179622,23.776884,217.26,217.2,0.5405967]
[1734299179936,10.3543,217.3,217.2,0.5405967]
[1734299180233,20.0,217.26,217.2,0.5405967]
[1734299180712,43.776884,217.25,217.2,0.5405967]
[1734299180921,135.5594033,217.16,217.08,19.95171991]
[1734299181231,1.5522,217.23,217.07,19.95171991]
[1734299181404,20.0,217.19,217.07,19.95171991]
[1734299182020,20.0,217.18,217.07,19.95171991]
[1734299182608,20.0,217.19,217.06,19.95171991]
[1734299182921,23.776884,217.18,217.07,19.95171991]
[1734299183126,20.0,217.2,217.11,19.95171991]
[1734299183325,18.417313,217.24,217.16,19.95171991]
[1734299183520,1.5522,217.29,217.18,19.95171991]
[1734299183701,1.5522,217.29,217.2,19.95171991]
[1734299183899,1.5522,217.29,217.12,23.776884]
[1734299183900,1.5522,217.29,217.19,19.95171991]
[1734299184226,10.354,217.31,217.19,19.95171991]
[1734299184529,10.354,217.31,217.17,19.95171991]
[1734299184731,10.354,217.31,217.16,19.95171991]
[1734299185409,0.12549,217.3,217.15,6.4038]
[1734299185604,0.12549,217.27,217.1,26.35551991]
[1734299185823,0.12549,217.27,217.08,19.95171991]
[1734299185824,23.776884,217.22,217.08,19.95171991]
[1734299186332,23.776884,217.22,217.09,19.95171991]
[1734299187344,8.056,217.23,217.12,19.95171991]
[1734299187526,34.132584,217.27,217.14,19.95171991]
[1734299187710,20.0,217.24,217.14,19.95171991]
[1734299188036,20.0,217.24,217.13,19.95171991]
[1734299188412,20.0,217.24,217.12,19.95171991]
[1734299188610,20.0,217.24,217.13,19.95171991]
[1734299189419,20.0,217.24,217.14,19.95171991]
[1734299192350,30.3574,217.24,217.12,19.95171991]
[1734299192554,23.776884,217.23,217.1,19.95171991]
[1734299192755,23.776884,217.23,217.09,19.95171991]
[1734299193053,30.3574,217.24,217.07,19.95171991]
[1734299193054,23.776884,217.19,217.07,19.95171991]
[1734299193921,20.0,217.2,217.11,19.95171991]
[1734299194116,1.5522,217.29,217.06,0.12549]
[1734299194117,1.5522,217.29,217.13,19.95171991]
[1734299194353,23.776884,217.27,217.13,19.95171991]
[1734299195251,16.8593,217.28,217.15,19.95171991]
[1734299195432,16.8593,217.28,217.14,0.25098]
[1734299195433,16.8593,217.28,217.16,19.95171991]
[1734299195956,16.8593,217.28,217.14,19.95171991]
[1734299196155,16.8593,217.28,217.13,19.95171991]
[1734299196320,0.12549,217.27,217.1,19.95171991]
[1734299196627,23.776884,217.23,217.09,19.95171991]
[1734299196832,20.0,217.2,217.09,19.95171991]
[1734299198024,20.0,217.2,217.1,19.95171991]
[1734299199359,20.0,217.2,217.09,19.95171991]
[1734299199654,23.776884,217.19,217.08,19.95171991]
[1734299199861,34.136484,217.19,217.07,19.95171991]
[1734299201029,1.5309,217.18,217.07,19.95171991]
[1734299202333,1.5309,217.18,217.08,19.95171991]
[1734299202574,1.5309,217.23,217.13,19.95171991]
[1734299202857,1.5309,217.23,217.14,19.95171991]
[1734299205152,1.5309,217.23,217.12,20.07720991]
[1734299205660,23.776884,217.22,217.08,19.95171991]
[1734299206038,23.776884,217.18,217.05,19.95171991]
[1734299206637,23.776884,217.18,217.04,19.95171991]
[1734299207361,34.137884,217.16,217.03,19.95171991]
[1734299209348,34.137884,217.16,216.98,12.0618967]
[1734299209563,23.776884,217.14,217.02,20.07720991]
[1734299210239,23.776884,217.14,217.03,19.95171991]
[1734299210846,10.3624,217.13,217.03,19.95171991]
[1734299211030,23.776884,217.12,217.02,19.95171991]
[1734299211235,23.776884,217.12,216.98,0.5405967]
[1734299211435,23.776884,217.12,217.02,19.95171991]
[1734299212569,23.776884,217.1,216.99,19.95171991]
[1734299212756,23.776884,217.1,216.98,0.5405967]
[1734299213566,23.776884,217.1,216.98,20.49231661]
[1734299213863,23.776884,217.1,216.99,19.95171991]
[1734299214377,23.776884,217.1,217.0,19.95171991]
[1734299215438,10.3634,217.11,217.01,19.95171991]
[1734299216375,12.0231,217.15,217.03,19.95171991]
[1734299216579,12.0231,217.15,217.06,19.95171991]
[1734299216580,1.6613,217.15,217.06,19.95171991]
[1734299217178,1.6613,217.15,217.03,19.95171991]
[1734299217594,10.3619,217.14,217.02,19.95171991]
[1734299217886,10.3619,217.14,217.01,19.95171991]
[1734299218065,23.776884,217.13,217.01,19.95171991]
[1734299218250,23.776884,217.13,217.03,19.95171991]
[1734299218454,23.776884,217.13,217.04,19.95171991]
[1734299218868,23.776884,217.13,217.03,19.95171991]
[1734299219068,23.776884,217.13,217.02,19.95171991]
[1734299219278,23.776884,217.11,216.99,19.95171991]
[1734299219654,23.776884,217.11,216.98,0.5405967]
[1734299219860,23.776884,217.07,216.98,0.5405967]
[1734299220076,23.776884,217.05,216.98,0.5405967]
[1734299220385,8.0622,217.06,216.98,0.5405967]
[1734299221165,23.776884,217.05,216.98,0.5405967]
[1734299221368,34.143084,217.05,216.98,0.5405967]
[1734299221872,20.0,217.02,216.98,0.5405967]
[1734299222184,23.776884,217.01,216.98,0.5405967]
[1734299222364,20.0,217.02,216.98,0.5405967]
[1734299223181,34.143084,217.05,216.98,0.5405967]
[1734299223684,1.5188,217.06,216.99,12.5108958]
[1734299224062,1.5188,217.06,216.99,20.00867324]
[1734299224255,8.0622,217.11,217.0,20.00867324]
[1734299224453,8.0622,217.11,217.01,20.00867324]
[1734299224659,6.5434,217.16,217.05,20.00867324]
[1734299224966,6.5434,217.16,217.04,20.00867324]
[1734299224967,8.0622,217.16,217.04,20.00867324]
[1734299225356,8.0622,217.16,217.06,20.00867324]
[1734299226290,10.3615,217.15,217.06,20.00867324]
[1734299226460,10.3615,217.15,217.07,20.00867324]
[1734299226809,20.0,217.12,216.99,20.00867324]
[1734299227106,20.0,217.12,217.0,20.00867324]
[1734299227272,20.0,217.12,217.04,20.00867324]
[1734299227592,10.3615,217.15,217.05,20.00867324]
[1734299228085,8.0622,217.16,217.08,20.00867324]
[1734299228294,1.5188,217.16,217.08,20.00867324]
[1734299228459,1.5188,217.16,217.09,20.00867324]
[1734299228658,1.5188,217.23,217.15,20.00867324]
[1734299228855,1.5188,217.23,217.16,20.00867324]
[1734299229084,1.5188,217.23,217.14,20.00867324]
[1734299229465,1.5188,217.23,217.15,20.00867324]
[1734299230071,1.5188,217.23,217.16,20.00867324]
[1734299230704,1.5188,217.23,217.14,20.00867324]
[1734299230919,7.00691687,217.43,217.26,0.25098]
[1734299231203,13.82328301,217.45,217.31,20.00867324]
[1734299231407,13.82328301,217.45,217.33,20.00867324]
[1734299231608,13.82328301,217.45,217.34,20.00867324]
[1734299232112,10.3476,217.44,217.34,20.00867324]
[1734299232803,10.3476,217.44,217.31,20.00867324]
[1734299233007,20.0,217.41,217.31,20.00867324]
[1734299233785,20.0,217.41,217.32,20.00867324]
[1734299234306,23.776884,217.4,217.32,20.00867324]
[1734299235785,10.3476,217.44,217.38,20.00867324]
[1734299235988,3.67,217.46,217.39,20.00867324]
[1734299236290,3.67,217.46,217.41,20.00867324]
[1734299236490,10.3457,217.49,217.21,18.402156]
[1734299236491,136.80328298,217.33,217.21,18.402156]
[1734299236710,0.12549,217.31,217.14,20.00867324]
[1734299236900,0.12549,217.29,217.12,20.00867324]
[1734299237084,0.12549,217.27,217.12,20.00867324]
[1734299237279,23.776884,217.25,217.1,20.00867324]
[1734299237519,23.776884,217.23,217.1,20.00867324]
[1734299237806,0.8634697,217.22,217.15,20.00867324]
[1734299238009,20.0,217.25,217.15,20.00867324]
[1734299238219,20.0,217.23,217.16,20.00867324]
[1734299238420,0.86337276,217.22,217.13,20.00867324]
[1734299238714,0.86337276,217.22,217.12,20.00867324]
[1734299238921,0.86337276,217.22,217.11,20.00867324]
[1734299239418,0.86337276,217.22,217.13,20.00867324]
[1734299239711,0.86337276,217.22,217.12,20.00867324]
[1734299240868,20.0,217.18,217.08,20.00867324]
[1734299241112,20.0,217.18,217.06,20.00867324]
[1734299241113,0.86364971,217.17,217.06,20.00867324]
[1734299241416,0.86364971,217.17,217.07,20.00867324]
[1734299241716,0.86364971,217.17,217.08,20.00867324]
[1734299242218,0.86364971,217.17,217.05,20.00867324]
[1734299242386,23.776884,217.16,217.07,20.00867324]
[1734299242595,0.86370794,217.15,217.07,20.00867324]
[1734299243504,0.86370794,217.15,217.03,1.5935]
[1734299243722,2.79932948,217.24,217.13,20.00867324]
[1734299243723,0.86358821,217.17,217.13,20.00867324]
[1734299243888,22.79932948,217.24,217.15,20.00867324]
[1734299243889,0.86344684,217.21,217.15,20.00867324]
[1734299244094,0.86344684,217.21,217.13,20.00867324]
[1734299244513,0.86344684,217.21,217.12,20.00867324]
[1734299244908,22.79932948,217.24,217.14,20.00867324]
[1734299244909,0.86347845,217.2,217.14,20.00867324]
[1734299245236,0.86340417,217.23,217.15,20.00867324]
[1734299246634,20.86340417,217.23,217.15,20.00867324]
[1734299247532,20.86340417,217.23,217.12,20.00867324]
[1734299248505,20.86340417,217.23,217.13,20.00867324]
[1734299248707,20.86340417,217.23,217.08,20.0]
[1734299248708,0.86340417,217.23,217.15,20.00867324]
[1734299248935,6.5434,217.32,217.17,20.00867324]
[1734299248936,0.86332845,217.25,217.17,20.00867324]
[1734299249322,2.81428476,217.28,217.18,20.00867324]
[1734299249629,0.86317144,217.27,217.17,20.00867324]
[1734299250722,20.86317144,217.27,217.17,20.00867324]
[1734299251407,20.86317144,217.27,217.16,20.00867324]
[1734299251737,23.776884,217.22,217.1,20.00867324]
[1734299252031,23.776884,217.2,217.05,20.00867324]
[1734299252246,23.776884,217.18,217.04,20.00867324]
[1734299252446,20.86364064,217.17,217.01,20.00867324]
[1734299252648,20.86364064,217.17,217.0,6.063]
[1734299252649,20.0,217.13,217.0,6.063]
[1734299252850,20.0,217.13,216.99,20.00867324]
[1734299252851,0.86385672,217.12,216.99,20.00867324]
[1734299253047,20.0,217.08,216.98,0.5405967]
[1734299253237,0.86402872,217.07,216.98,0.5405967]
[1734299254654,20.86395807,217.08,216.99,32.52238034]
[1734299254816,0.86383286,217.1,217.01,32.52238034]
[1734299255012,0.86383286,217.1,217.03,32.52238034]
[1734299255242,0.8637311,217.16,217.04,32.52238034]
[1734299255749,3.61197776,217.16,217.04,32.52238034]
[1734299255923,3.61197776,217.16,217.05,0.12549]
[1734299256120,0.8637311,217.16,217.06,32.52238034]
[1734299256432,0.8637311,217.16,217.06,48.61238034]
[1734299256624,20.0,217.14,217.06,48.61238034]
[1734299256945,0.86363845,217.13,217.07,32.64787034]
[1734299257149,10.3587,217.21,217.11,32.52238034]
[1734299257357,0.86345098,217.2,217.11,32.52238034]
[1734299257653,0.86345123,217.19,217.1,32.52238034]
[1734299257817,0.86345782,217.18,217.1,32.52238034]
[1734299258160,0.86344153,217.2,217.1,0.12549]
[1734299258319,0.8634863,217.19,217.1,0.12549]
[1734299258646,0.86348665,217.18,217.1,0.12549]
[1734299258851,0.86347737,217.2,217.1,0.12549]
[1734299259014,0.86347865,217.19,217.07,32.52238034]
[1734299259344,0.86347865,217.19,217.06,16.09]
[1734299259345,31.22376191,217.18,217.06,16.09]
[1734299259549,30.3602,217.18,217.06,16.09]
[1734299259855,30.3602,217.18,217.06,48.61238034]
[1734299260855,20.0,217.2,217.08,32.64787034]
[1734299261022,0.86350446,217.19,217.09,32.52238034]
[1734299261353,0.86350477,217.18,217.08,32.64787034]
[1734299261553,20.0,217.19,217.08,32.64787034]
[1734299261756,20.0,217.15,217.06,16.09]
[1734299262045,0.86365372,217.14,217.06,16.09]
[1734299262220,20.0,217.15,217.06,48.61238034]
[1734299262421,0.86358023,217.14,217.07,32.52238034]
[1734299262649,2.3867127,217.26,217.14,0.25098]
[1734299262822,0.86324209,217.28,217.2,32.52238034]
[1734299263154,0.86324209,217.28,217.14,0.81608367]
[1734299263155,1.5832,217.33,217.24,0.12549]
[1734299263397,1.5832,217.33,217.16,5.0]
[1734299263398,0.86288778,217.33,217.25,32.64787034]
[1734299263648,0.86281836,217.35,217.25,32.64787034]
[1734299264755,20.0,217.33,217.22,32.64787034]
[1734299264957,20.86297886,217.32,217.2,32.52238034]
[1734299265262,20.86297886,217.32,217.21,32.52238034]
[1734299265549,20.86297886,217.32,217.21,0.12549]
[1734299265753,20.86297886,217.32,217.2,32.52238034]
[1734299266122,0.86306345,217.31,217.21,32.52238034]
[1734299266360,0.86306345,217.31,217.2,32.52238034]
[1734299266521,0.86306345,217.31,217.22,32.52238034]
[1734299267244,0.86306345,217.31,217.21,32.52238034]
[1734299268862,23.776884,217.3,217.15,6.1471]
[1734299269037,23.776884,217.28,217.14,32.52238034]
[1734299269367,0.86332633,217.27,217.13,32.52238034]
[1734299269564,20.0,217.25,217.13,32.52238034]
[1734299269872,0.86326702,217.24,217.14,0.12549]
[1734299270559,20.86326702,217.24,217.13,32.52238034]
[1734299271571,0.86336983,217.34,217.23,32.52238034]
[1734299271759,0.86336983,217.34,217.27,32.52238034]
[1734299271954,0.86336983,217.34,217.21,0.69029908]
[1734299271955,0.86336983,217.34,217.26,32.52238034]
[1734299272158,0.86336983,217.34,217.25,32.52238034]
[1734299272449,0.86336983,217.34,217.2,32.52238034]
[1734299272653,0.86336983,217.34,217.21,32.52238034]
[1734299272850,20.0,217.33,217.24,32.52238034]
[1734299273057,0.86292176,217.32,217.24,32.52238034]
[1734299273478,0.86292176,217.32,217.23,32.52238034]
[1734299274063,0.86292176,217.32,217.23,19.96425181]
[1734299274567,0.86292176,217.32,217.18,20.0]
[1734299274770,0.86292176,217.32,217.21,19.96425181]
[1734299275283,0.86292176,217.32,217.18,20.0]
[1734299275284,34.130684,217.31,217.18,19.96425181]
[1734299275459,0.86315767,217.3,217.18,19.96425181]
[1734299276074,0.86315767,217.3,217.15,19.96425181]
[1734299276368,23.776884,217.27,217.15,19.96425181]
[1734299276575,0.86328913,217.26,217.15,19.96425181]
[1734299276874,0.86328913,217.26,217.16,19.96425181]
[1734299277773,7.93609,217.25,217.1,0.69060955]
[1734299277976,24.027864,217.19,217.06,16.09]